fUSD/lending_fUSD_20240516
["ID","MTS","AMOUNT","RATE_DAILY","PERIOD"]
[327133165,1715845900516,-500.0,0.00011574,2]
[327133166,1715845900526,-422.86825219,0.00011574,2]
[327133167,1715845900535,-500.0,0.00011574,2]
[327133168,1715845900545,-500.0,0.00011574,2]
[327133169,1715845900555,-150.0,0.00011574,2]
[327133170,1715845900564,-150.0,0.00011574,2]
[327133171,1715845900575,-500.0,0.00011574,2]
[327133172,1715845900584,-500.0,0.00011574,2]
[327133173,1715845900594,-340.1124411,0.00011574,2]
[327133174,1715845900603,-500.0,0.00011574,2]
[327133175,1715845900613,-500.0,0.00011574,2]
[327133176,1715845900622,-500.0,0.00011574,2]
[327133177,1715845900632,-500.0,0.00011574,2]
[327133178,1715845900642,-500.0,0.00011574,2]
[327133179,1715845900651,-500.0,0.00011574,2]
[327133180,1715845900660,-621.61806431,0.00011574,2]
[327133181,1715845900670,-500.0,0.00011574,2]
[327133182,1715845900679,-500.0,0.00011574,2]
[327133183,1715845900688,-500.0,0.00011574,2]
[327133184,1715845900698,-500.0,0.00011574,2]
[327133185,1715845900707,-426.3625154,0.00011574,2]
[327133186,1715845900717,-500.0,0.00011574,2]
[327133187,1715845900726,-500.0,0.00011574,2]
[327133188,1715845900735,-500.0,0.00011574,2]
[327133189,1715845900745,-354.9491034,0.00011574,2]
[327133190,1715845900755,-530.96,0.00011574,2]
[327133191,1715845900766,-530.96,0.00011574,2]
[327133192,1715845900777,-500.0,0.00011574,2]
[327133193,1715845900787,-500.0,0.00011574,2]
[327133194,1715845900797,-500.0,0.00011574,2]
[327133195,1715845900806,-500.0,0.00011574,2]
[327133196,1715845900816,-500.0,0.00011574,2]
[327133197,1715845900826,-500.0,0.00011574,2]
[327133198,1715845900835,-500.0,0.00011574,2]
[327133199,1715845900846,-500.0,0.00011574,2]
[327133200,1715845900857,-500.0,0.00011574,2]
[327133201,1715845900919,-500.0,0.00011574,2]
[327133202,1715845900929,-307.15323029,0.00011574,2]
[327133203,1715845900938,-500.0,0.00011574,2]
[327133204,1715845900947,-500.0,0.00011574,2]
[327133205,1715845900958,-529.11277295,0.00011574,2]
[327133206,1715845900968,-500.0,0.00011574,2]
[327133207,1715845900978,-500.0,0.00011574,2]
[327133208,1715845900987,-500.0,0.00011574,2]
[327133209,1715845900995,-500.0,0.00011574,2]
[327133210,1715845901006,-670.92,0.00011574,2]
[327133211,1715845901015,-670.92,0.00011574,2]
[327133212,1715845901024,-768.88,0.00011574,2]
[327133213,1715845901033,-768.88,0.00011574,2]
[327133214,1715845901045,-500.0,0.00011574,2]
[327133215,1715845901054,-151.0,0.00011574,2]
[327133216,1715845901063,-176.53424537,0.00011574,2]
[327133217,1715845901072,-500.0,0.00011574,2]
[327133218,1715845901083,-603.236045,0.00011574,2]
[327133219,1715845901092,-151.0,0.00011574,2]
[327133220,1715845901102,-500.0,0.00011574,2]
[327133221,1715845901111,-500.0,0.00011574,2]
[327133222,1715845901120,-931.66,0.00011574,2]
[327133223,1715845901130,-931.66,0.00011574,2]
[327133224,1715845901140,-529.08,0.00011574,2]
[327133225,1715845901150,-529.08,0.00011574,2]
[327133226,1715845901159,-274.05883289,0.00011574,2]
[327133227,1715845901169,-518.43,0.00011574,2]
[327133228,1715845901178,-518.43,0.00011574,2]
[327133229,1715845901188,-693.94,0.00011574,2]
[327133230,1715845901198,-693.94,0.00011574,2]
[327133231,1715845901207,-500.0,0.00011574,2]
[327133232,1715845901216,-500.0,0.00011574,2]
[327133233,1715845901225,-500.0,0.00011574,2]
[327133234,1715845901235,-440.15679313,0.00011574,2]
[327133235,1715845901244,-500.0,0.00011574,2]
[327133236,1715845901253,-500.0,0.00011574,2]
[327133237,1715845901262,-500.0,0.00011574,2]
[327133238,1715845901272,-558.49976566,0.00011574,2]
[327133239,1715845901281,-500.0,0.00011574,2]
[327133240,1715845901290,-500.0,0.00011574,2]
[327133241,1715845901300,-500.0,0.00011574,2]
[327133242,1715845901309,-564.31,0.00011574,2]
[327133243,1715845901319,-564.31,0.00011574,2]
[327133244,1715845901328,-511.64,0.00011574,2]
[327133245,1715845901337,-511.64,0.00011574,2]
[327133246,1715845901346,-491.3866717,0.00011574,2]
[327133247,1715845901355,-500.0,0.00011574,2]
[327133248,1715845901365,-500.0,0.00011574,2]
[327133249,1715845901374,-500.0,0.00011574,2]
[327133250,1715845901383,-500.0,0.00011574,2]
[327133251,1715845901392,-557.59082329,0.00011574,2]
[327133252,1715845901401,-500.0,0.00011574,2]
[327133253,1715845901411,-500.0,0.00011574,2]
[327133254,1715845901420,-500.0,0.00011574,2]
[327133255,1715845901429,-500.0,0.00011574,2]
[327133256,1715845901439,-500.0,0.00011574,2]
[327133257,1715845901449,-500.0,0.00011574,2]
[327133258,1715845901458,-600.08,0.00011574,2]
[327133259,1715845901467,-500.0,0.00011574,2]
[327133260,1715845901476,-600.08,0.00011574,2]
[327133261,1715845901486,-500.0,0.00011574,2]
[327133262,1715845901495,-620.4927987,0.00011574,2]
[327133263,1715845901504,-500.0,0.00011574,2]
[327133264,1715845901513,-500.0,0.00011574,2]
[327133265,1715845901523,-500.0,0.00011574,2]
[327133266,1715845901533,-500.0,0.00011574,2]
[327133267,1715845901543,-500.0,0.00011574,2]
[327133268,1715845901552,-534.72,0.00011574,2]
[327133269,1715845901562,-500.0,0.00011574,2]
[327133270,1715845901575,-500.0,0.00011574,2]
[327133271,1715845901584,-500.0,0.00011574,2]
[327133272,1715845901594,-500.0,0.00011574,2]
[327133273,1715845901603,-500.0,0.00011574,2]
[327133274,1715845901613,-500.0,0.00011574,2]
[327133275,1715845901623,-500.0,0.00011574,2]
[327133276,1715845901632,-500.0,0.00011574,2]
[327133277,1715845901641,-6532.31,0.00011574,2]
[327133278,1715845901651,-6532.31,0.00011574,2]
[327133279,1715845901661,-6532.31,0.00011574,2]
[327133280,1715845901672,-6532.31,0.00011574,2]
[327133281,1715845901682,-6532.49052005,0.00011574,2]
[327133282,1715845901693,-500.0,0.00011574,2]
[327133283,1715845901702,-351.26357308,0.00011574,2]
[327133284,1715845901711,-532.31,0.00011574,2]
[327133285,1715845901720,-532.31,0.00011574,2]
[327133286,1715845901730,-500.0,0.00011574,2]
[327133287,1715845901739,-500.0,0.00011574,2]
[327133288,1715845901748,-500.0,0.00011574,2]
[327133289,1715845901759,-229.286727,0.00011574,2]
[327133290,1715845901770,-299.0956862,0.00011574,2]
[327133291,1715845901782,-229.286727,0.00011574,2]
[327133292,1715845901793,-2738.01,0.00011574,2]
[327133293,1715845901803,-3608.27,0.00011574,2]
[327133294,1715845901813,-2738.01,0.00011574,2]
[327133295,1715845901822,-3608.27,0.00011574,2]
[327133296,1715845901832,-229.286727,0.00011574,2]
[327133297,1715845901842,-229.286727,0.00011574,2]
[327133298,1715845901852,-644.67,0.00011574,2]
[327133299,1715845901862,-644.67,0.00011574,2]
[327133300,1715845901871,-500.0,0.00011574,2]
[327133301,1715845901880,-678.1,0.00011574,2]
[327133302,1715845901889,-678.1,0.00011574,2]
[327133303,1715845901898,-514.19,0.00011574,2]
[327133304,1715845901908,-514.19,0.00011574,2]
[327133305,1715845901917,-514.19,0.00011574,2]
[327133306,1715845901926,-514.19,0.00011574,2]
[327133307,1715845901936,-514.19,0.00011574,2]
[327133308,1715845901946,-514.25496915,0.00011574,2]
[327133309,1715845901956,-500.0,0.00011574,2]
[327133310,1715845901969,-234.11354716,0.00011574,2]
[327133311,1715845901979,-702.88,0.00011574,2]
[327133312,1715845901988,-702.88,0.00011574,2]
[327133313,1715845901998,-918.24,0.00011574,2]
[327133314,1715845902009,-918.24,0.00011574,2]
[327133315,1715845902018,-918.24,0.00011574,2]
[327133316,1715845902028,-918.24,0.00011574,2]
[327133317,1715845902037,-918.24,0.00011574,2]
[327133318,1715845902049,-918.27701422,0.00011574,2]
[327133319,1715845902060,-500.0,0.00011574,2]
[327133320,1715845902070,-500.0,0.00011574,2]
[327133321,1715845902080,-500.0,0.00011574,2]
[327133322,1715845902089,-500.0,0.00011574,2]
[327133323,1715845902099,-500.0,0.00011574,2]
[327133324,1715845902109,-3061.01,0.00011574,2]
[327133325,1715845902118,-3061.01,0.00011574,2]
[327133326,1715845902127,-576.29,0.00011574,2]
[327133327,1715845902138,-576.29,0.00011574,2]
[327133328,1715845902148,-500.0,0.00011574,2]
[327133329,1715845902157,-500.0,0.00011574,2]
[327133330,1715845902166,-500.0,0.00011574,2]
[327133331,1715845902175,-196.44111398,0.00011574,2]
[327133332,1715845902184,-500.0,0.00011574,2]
[327133333,1715845902193,-500.0,0.00011574,2]
[327133334,1715845902203,-678.88,0.00011574,2]
[327133335,1715845902212,-678.88,0.00011574,2]
[327133336,1715845902221,-579.88,0.00011574,2]
[327133337,1715845902231,-579.88,0.00011574,2]
[327133338,1715845902240,-666.82,0.00011574,2]
[327133339,1715845902250,-666.82,0.00011574,2]
[327133340,1715845902259,-500.0,0.00011574,2]
[327133341,1715845902270,-500.0,0.00011574,2]
[327133342,1715845902279,-500.0,0.00011574,2]
[327133343,1715845902288,-508.38853898,0.00011574,2]
[327133344,1715845902297,-500.0,0.00011574,2]
[327133345,1715845902306,-500.0,0.00011574,2]
[327133346,1715845902315,-151.47788992,0.00011574,2]
[327133347,1715845902324,-421.67278016,0.00011574,2]
[327133348,1715845902333,-1806.07,0.00011574,2]
[327133349,1715845902343,-1806.07,0.00011574,2]
[327133350,1715845902352,-677.67,0.00011574,2]
[327133351,1715845902362,-500.0,0.00011574,2]
[327133352,1715845902371,-677.67,0.00011574,2]
[327133353,1715845902380,-401.74228096,0.00011574,2]
[327133354,1715845902389,-500.0,0.00011574,2]
[327133355,1715845902399,-500.0,0.00011574,2]
[327133356,1715845902409,-500.0,0.00011574,2]
[327133357,1715845902418,-500.0,0.00011574,2]
[327133358,1715845902427,-591.29,0.00011574,2]
[327133359,1715845902437,-500.0,0.00011574,2]
[327133360,1715845902446,-591.29,0.00011574,2]
[327133361,1715845902455,-500.0,0.00011574,2]
[327133362,1715845902465,-591.29,0.00011574,2]
[327133363,1715845902474,-591.29,0.00011574,2]
[327133364,1715845902484,-591.46848861,0.00011574,2]
[327133365,1715845902494,-2681.51,0.00011574,2]
[327133366,1715845902504,-2681.51,0.00011574,2]
[327133367,1715845902514,-2681.51,0.00011574,2]
[327133368,1715845902525,-516.43,0.00011574,2]
[327133369,1715845902535,-2681.51,0.00011574,2]
[327133370,1715845902546,-516.43,0.00011574,2]
[327133371,1715845902557,-2681.51,0.00011574,2]
[327133372,1715845902568,-2681.62014969,0.00011574,2]
[327133373,1715845902578,-500.0,0.00011574,2]
[327133374,1715845902589,-500.0,0.00011574,2]
[327133375,1715845902599,-951.71,0.00011574,2]
[327133376,1715845902611,-951.71,0.00011574,2]
[327133377,1715845902621,-500.0,0.00011574,2]
[327133378,1715845902630,-500.0,0.00011574,2]
[327133379,1715845902639,-500.0,0.00011574,2]
[327133380,1715845902648,-500.0,0.00011574,2]
[327133381,1715845902657,-752.56,0.00011574,2]
[327133382,1715845902666,-752.56,0.00011574,2]
[327133383,1715845902676,-500.0,0.00011574,2]
[327133384,1715845902685,-500.0,0.00011574,2]
[327133385,1715845902695,-500.47,0.00011574,2]
[327133386,1715845902704,-500.0,0.00011574,2]
[327133387,1715845902713,-168.11931981,0.00011574,2]
[327133388,1715845902723,-500.47,0.00011574,2]
[327133389,1715845902733,-7315.26,0.00011574,2]
[327133390,1715845902742,-500.47,0.00011574,2]
[327133391,1715845902754,-7315.26,0.00011574,2]
[327133392,1715845902764,-500.47,0.00011574,2]
[327133393,1715845902774,-500.63981202,0.00011574,2]
[327133394,1715845902784,-151.0,0.00011574,2]
[327133395,1715845902794,-968.09,0.00011574,2]
[327133396,1715845902803,-968.09,0.00011574,2]
[327133397,1715845902812,-571.1,0.00011574,2]
[327133398,1715845902822,-571.1,0.00011574,2]
[327133399,1715845902832,-571.1,0.00011574,2]
[327133400,1715845902841,-571.1,0.00011574,2]
[327133401,1715845902850,-571.1,0.00011574,2]
[327133402,1715845902860,-571.27160483,0.00011574,2]
[327133403,1715845902870,-841.0,0.00011574,2]
[327133404,1715845902879,-841.0,0.00011574,2]
[327133405,1715845902888,-624.98,0.00011574,2]
[327133406,1715845902898,-624.98,0.00011574,2]
[327133407,1715845902908,-500.0,0.00011574,2]
[327133408,1715845902918,-510.85568624,0.00011574,2]
[327133409,1715845902927,-500.0,0.00011574,2]
[327133410,1715845902937,-736.45,0.00011574,2]
[327133411,1715845902947,-500.0,0.00011574,2]
[327133412,1715845902957,-736.45,0.00011574,2]
[327133413,1715845902971,-999.62,0.00011574,2]
[327133414,1715845902980,-999.62,0.00011574,2]
[327133415,1715845902991,-500.0,0.00011574,2]
[327133416,1715845903001,-4907.78,0.00011574,2]
[327133417,1715845903012,-4907.78,0.00011574,2]
[327133418,1715845903021,-500.0,0.00011574,2]
[327133419,1715845903031,-500.0,0.00011574,2]
[327133420,1715845903042,-500.0,0.00011574,2]
[327133421,1715845903052,-1056.29,0.00011574,2]
[327133422,1715845903062,-1056.29,0.00011574,2]
[327133423,1715845903072,-858.13,0.00011574,2]
[327133424,1715845903082,-858.13,0.00011574,2]
[327133425,1715845903093,-858.13,0.00011574,2]
[327133426,1715845903102,-500.0,0.00011574,2]
[327133427,1715845903114,-858.13,0.00011574,2]
[327133428,1715845903124,-669.88,0.00011574,2]
[327133429,1715845903134,-500.0,0.00011574,2]
[327133430,1715845903144,-858.26693174,0.00011574,2]
[327133431,1715845903154,-669.88,0.00011574,2]
[327133432,1715845903164,-561.96,0.00011574,2]
[327133433,1715845903173,-500.0,0.00011574,2]
[327133434,1715845903183,-561.96,0.00011574,2]
[327133435,1715845903194,-500.0,0.00011574,2]
[327133436,1715845903204,-2302.3,0.00011574,2]
[327133437,1715845903214,-2302.3,0.00011574,2]
[327133438,1715845903224,-545.93,0.00011574,2]
[327133439,1715845903233,-937.61,0.00011574,2]
[327133440,1715845903242,-545.93,0.00011574,2]
[327133441,1715845903251,-937.61,0.00011574,2]
[327133442,1715845903261,-545.93,0.00011574,2]
[327133443,1715845903270,-500.0,0.00011574,2]
[327133444,1715845903279,-545.93,0.00011574,2]
[327133445,1715845903288,-546.22255411,0.00011574,2]
[327133446,1715845903297,-545.93,0.00011574,2]
[327133447,1715845903307,-546.13707042,0.00011574,2]
[327133448,1715845903316,-500.0,0.00011574,2]
[327133449,1715845903326,-500.0,0.00011574,2]
[327133450,1715845903334,-500.0,0.00011574,2]
[327133451,1715845903343,-834.1,0.00011574,2]
[327133452,1715845903352,-866.14,0.00011574,2]
[327133453,1715845903362,-834.1,0.00011574,2]
[327133454,1715845903371,-500.0,0.00011574,2]
[327133455,1715845903380,-151.0,0.00011574,2]
[327133456,1715845903389,-866.14,0.00011574,2]
[327133457,1715845903397,-151.0,0.00011574,2]
[327133458,1715845903406,-500.0,0.00011574,2]
[327133459,1715845903416,-500.0,0.00011574,2]
[327133460,1715845903426,-8730.78,0.00011574,2]
[327133461,1715845903436,-8730.78,0.00011574,2]
[327133462,1715845903446,-521.96,0.00011574,2]
[327133463,1715845903455,-521.96,0.00011574,2]
[327133464,1715845903464,-361.864115,0.00011574,2]
[327133465,1715845903473,-537.37,0.00011574,2]
[327133466,1715845903481,-537.37,0.00011574,2]
[327133467,1715845903491,-572.13,0.00011574,2]
[327133468,1715845903500,-621.06,0.00011574,2]
[327133469,1715845903509,-1319.7,0.00011574,2]
[327133470,1715845903518,-572.13,0.00011574,2]
[327133471,1715845903527,-621.06,0.00011574,2]
[327133472,1715845903537,-1319.7,0.00011574,2]
[327133473,1715845903545,-1319.7,0.00011574,2]
[327133474,1715845903555,-1319.7,0.00011574,2]
[327133475,1715845903563,-1319.7,0.00011574,2]
[327133476,1715845903572,-1319.83336498,0.00011574,2]
[327133477,1715845903581,-361.864115,0.00011574,2]
[327133478,1715845903590,-500.0,0.00011574,2]
[327133479,1715845903599,-500.0,0.00011574,2]
[327133480,1715845903608,-522.77,0.00011574,2]
[327133481,1715845903617,-522.77,0.00011574,2]
[327133482,1715845903626,-888.56,0.00011574,2]
[327133483,1715845903634,-888.56,0.00011574,2]
[327133484,1715845903643,-500.0,0.00011574,2]
[327133485,1715845903652,-500.0,0.00011574,2]
[327133486,1715845903661,-236.944684,0.00011574,2]
[327133487,1715845903670,-236.944684,0.00011574,2]
[327133488,1715845903680,-500.0,0.00011574,2]
[327133489,1715845903689,-500.0,0.00011574,2]
[327133490,1715845903698,-500.0,0.00011574,2]
[327133491,1715845903707,-500.0,0.00011574,2]
[327133492,1715845903715,-642.94,0.00011574,2]
[327133493,1715845903725,-236.944684,0.00011574,2]
[327133494,1715845903734,-642.94,0.00011574,2]
[327133495,1715845903743,-236.944684,0.00011574,2]
[327133496,1715845903753,-194.010334,0.00011574,2]
[327133497,1715845903762,-671.93,0.00011574,2]
[327133498,1715845903772,-671.93,0.00011574,2]
[327133499,1715845903782,-194.010334,0.00011574,2]
[327133500,1715845903792,-500.0,0.00011574,2]
[327133502,1715845903801,-500.0,0.00011574,2]
[327133503,1715845903811,-500.0,0.00011574,2]
[327133504,1715845903820,-500.0,0.00011574,2]
[327133505,1715845903831,-194.010334,0.00011574,2]
[327133506,1715845903840,-194.010334,0.00011574,2]
[327133507,1715845903850,-500.0,0.00011574,2]
[327133508,1715845903860,-500.0,0.00011574,2]
[327133509,1715845903869,-1104.67,0.00011574,2]
[327133510,1715845903879,-1104.67,0.00011574,2]
[327133511,1715845903889,-775.45,0.00011574,2]
[327133512,1715845903899,-775.45,0.00011574,2]
[327133513,1715845903908,-500.0,0.00011574,2]
[327133514,1715845903917,-775.45,0.00011574,2]
[327133515,1715845903926,-500.0,0.00011574,2]
[327133516,1715845903936,-775.45,0.00011574,2]
[327133517,1715845903945,-775.6522908,0.00011574,2]
[327133518,1715845903955,-858.1,0.00011574,2]
[327133519,1715845903968,-858.1,0.00011574,2]
[327133520,1715845903978,-500.0,0.00011574,2]
[327133521,1715845903988,-500.0,0.00011574,2]
[327133522,1715845903998,-500.0,0.00011574,2]
[327133523,1715845904008,-500.0,0.00011574,2]
[327133524,1715845904019,-298.1774747,0.00011574,2]
[327133525,1715845904029,-1327.99,0.00011574,2]
[327133526,1715845904041,-1327.99,0.00011574,2]
[327133527,1715845904051,-500.0,0.00011574,2]
[327133528,1715845904060,-500.0,0.00011574,2]
[327133529,1715845904070,-594.67,0.00011574,2]
[327133530,1715845904080,-594.67,0.00011574,2]
[327133531,1715845904091,-900.38,0.00011574,2]
[327133532,1715845904100,-500.0,0.00011574,2]
[327133533,1715845904110,-900.38,0.00011574,2]
[327133534,1715845904120,-500.0,0.00011574,2]
[327133535,1715845904129,-773.8,0.00011574,2]
[327133536,1715845904139,-773.8,0.00011574,2]
[327133537,1715845904148,-773.8,0.00011574,2]
[327133538,1715845904158,-773.8,0.00011574,2]
[327133539,1715845904167,-773.8,0.00011574,2]
[327133540,1715845904177,-773.97902175,0.00011574,2]
[327133541,1715845904187,-500.0,0.00011574,2]
[327133542,1715845904196,-500.0,0.00011574,2]
[327133543,1715845904207,-1615.84,0.00011574,2]
[327133544,1715845904218,-500.0,0.00011574,2]
[327133545,1715845904227,-500.0,0.00011574,2]
[327133546,1715845904237,-1615.84,0.00011574,2]
[327133547,1715845904246,-500.0,0.00011574,2]
[327133548,1715845904256,-7297.58,0.00011574,2]
[327133549,1715845904266,-7297.58,0.00011574,2]
[327133550,1715845904277,-994.71,0.00011574,2]
[327133551,1715845904287,-994.71,0.00011574,2]
[327133552,1715845904297,-500.0,0.00011574,2]
[327133554,1715845904307,-500.0,0.00011574,2]
[327133555,1715845904318,-500.0,0.00011574,2]
[327133556,1715845904329,-198.08581861,0.00011574,2]
[327133557,1715845904338,-1868.81,0.00011574,2]
[327133558,1715845904348,-1868.81,0.00011574,2]
[327133559,1715845904359,-500.0,0.00011574,2]
[327133560,1715845904369,-500.0,0.00011574,2]
[327133561,1715845904379,-1028.95,0.00011574,2]
[327133562,1715845904389,-500.0,0.00011574,2]
[327133563,1715845904400,-500.0,0.00011574,2]
[327133564,1715845904410,-638.38,0.00011574,2]
[327133565,1715845904421,-1028.95,0.00011574,2]
[327133566,1715845904431,-638.38,0.00011574,2]
[327133567,1715845904441,-545.87678,0.00011574,2]
[327133568,1715845904451,-545.87678,0.00011574,2]
[327133569,1715845904461,-950.37,0.00011574,2]
[327133570,1715845904471,-500.0,0.00011574,2]
[327133571,1715845904481,-950.37,0.00011574,2]
[327133572,1715845904490,-869.83,0.00011574,2]
[327133573,1715845904500,-500.0,0.00011574,2]
[327133574,1715845904510,-869.83,0.00011574,2]
[327133575,1715845904519,-545.87678,0.00011574,2]
[327133576,1715845904529,-545.87678,0.00011574,2]
[327133577,1715845904539,-500.0,0.00011574,2]
[327133578,1715845904550,-227.09092317,0.00011574,2]
[327133579,1715845904560,-570.11,0.00011574,2]
[327133580,1715845904569,-1163.53,0.00011574,2]
[327133581,1715845904579,-570.11,0.00011574,2]
[327133582,1715845904588,-1163.53,0.00011574,2]
[327133583,1715845904599,-500.0,0.00011574,2]
[327133584,1715845904609,-500.0,0.00011574,2]
[327133585,1715845904619,-500.0,0.00011574,2]
[327133586,1715845904628,-500.0,0.00011574,2]
[327133587,1715845904638,-658.95,0.00011574,2]
[327133588,1715845904647,-658.95,0.00011574,2]
[327133589,1715845904657,-658.95,0.00011574,2]
[327133590,1715845904668,-658.95,0.00011574,2]
[327133591,1715845904677,-500.0,0.00011574,2]
[327133592,1715845904687,-659.15370864,0.00011574,2]
[327133593,1715845904696,-500.0,0.00011574,2]
[327133594,1715845904705,-850.0,0.00011574,2]
[327133595,1715845904715,-850.0,0.00011574,2]
[327133596,1715845904724,-1102.54,0.00011574,2]
[327133597,1715845904734,-1102.54,0.00011574,2]
[327133598,1715845904744,-1873.23,0.00011574,2]
[327133599,1715845904754,-1873.23,0.00011574,2]
[327133600,1715845904765,-1873.23,0.00011574,2]
[327133601,1715845904775,-1873.23,0.00011574,2]
[327133602,1715845904785,-1873.24212313,0.00011574,2]
[327133603,1715845904794,-500.0,0.00011574,2]
[327133604,1715845904804,-500.0,0.00011574,2]
[327133605,1715845904814,-500.0,0.00011574,2]
[327133606,1715845904823,-500.0,0.00011574,2]
[327133607,1715845904834,-500.0,0.00011574,2]
[327133608,1715845904844,-500.0,0.00011574,2]
[327133609,1715845904853,-185.84673869,0.00011574,2]
[327133610,1715845904864,-661.94,0.00011574,2]
[327133611,1715845904875,-661.94,0.00011574,2]
[327133612,1715845904885,-661.94,0.00011574,2]
[327133613,1715845904895,-661.94,0.00011574,2]
[327133614,1715845904905,-662.08237915,0.00011574,2]
[327133615,1715845904915,-797.35,0.00011574,2]
[327133616,1715845904924,-797.35,0.00011574,2]
[327133617,1715845904934,-500.0,0.00011574,2]
[327133618,1715845904947,-500.0,0.00011574,2]
[327133619,1715845904959,-1025.09,0.00011574,2]
[327133620,1715845904973,-1025.09,0.00011574,2]
[327133621,1715845904984,-1717.87,0.00011574,2]
[327133622,1715845904995,-1025.09,0.00011574,2]
[327133623,1715845905007,-1717.87,0.00011574,2]
[327133624,1715845905018,-1025.09,0.00011574,2]
[327133625,1715845905028,-1025.09,0.00011574,2]
[327133626,1715845905040,-1025.25186834,0.00011574,2]
[327133627,1715845905051,-500.0,0.00011574,2]
[327133628,1715845905062,-500.0,0.00011574,2]
[327133629,1715845905073,-500.0,0.00011574,2]
[327133630,1715845905082,-500.0,0.00011574,2]
[327133631,1715845905092,-500.0,0.00011574,2]
[327133632,1715845905102,-500.0,0.00011574,2]
[327133633,1715845905112,-2725.83,0.00011574,2]
[327133634,1715845905122,-2725.83,0.00011574,2]
[327133635,1715845905133,-2725.83,0.00011574,2]
[327133636,1715845905142,-2725.83,0.00011574,2]
[327133637,1715845905152,-2725.83535108,0.00011574,2]
[327133638,1715845905163,-611.67,0.00011574,2]
[327133639,1715845905173,-611.67,0.00011574,2]
[327133640,1715845905183,-500.0,0.00011574,2]
[327133641,1715845905193,-707.3,0.00011574,2]
[327133642,1715845905204,-707.3,0.00011574,2]
[327133643,1715845905214,-500.0,0.00011574,2]
[327133644,1715845905224,-707.3,0.00011574,2]
[327133645,1715845905233,-5914.7,0.00011574,2]
[327133646,1715845905243,-707.3,0.00011574,2]
[327133647,1715845905253,-5914.7,0.00011574,2]
[327133648,1715845905263,-707.3,0.00011574,2]
[327133649,1715845905272,-707.33449274,0.00011574,2]
[327133650,1715845905282,-368.86897038,0.00011575,2]
[327133651,1715845905292,-152.194247,0.00011575,2]
[327133652,1715845905302,-155.554527,0.00011575,2]
[327133653,1715845905311,-500.0,0.00011575,2]
[327133654,1715845905321,-511.84789617,0.00011575,2]
[327133655,1715845905331,-500.0,0.00011575,2]
[327133656,1715845905341,-500.0,0.00011575,2]
[327133657,1715845905351,-164.60331436,0.00011575,2]
[327133658,1715845905361,-500.0,0.00011575,2]
[327133659,1715845905371,-500.0,0.00011575,2]
[327133660,1715845905380,-500.0,0.00011575,2]
[327133661,1715845905390,-500.0,0.00011575,2]
[327133662,1715845905400,-500.0,0.00011575,2]
[327133663,1715845905409,-151.0,0.00011575,2]
[327133664,1715845905419,-500.0,0.00011575,2]
[327133665,1715845905428,-500.0,0.00011575,2]
[327133666,1715845905438,-500.0,0.00011575,2]